Cogmind - Beta 13 @@@ ROGUE MODE // 2024.04.01 @ 15:37:21 Player: Fun Maker Result: Destroyed by G-34 Mercenary with Small Laser Performance ------------- Evolutions (0) 0 Regions Visited (1) 200 Robots Destroyed (13) 65 Value Destroyed (231) 231 Prototype IDs (0) 0 Alien Tech Used (0) 0 Bonus (2) 2 TOTAL SCORE: 498 Bonus ------- High Alert Combat Kills 2 Cogmind --------- Core Integrity 0/250 Matter 239/300 Energy 100/100 System Corruption 0% Temperature Cool (6) Movement Walking (120) Location -10/Materials Parts ------- > --- POWER (1) -------- (None) > --- PROPULSION (2) --- Aluminum Leg > --- UTILITY (2) ------ Sensor Array Signal Interpreter > --- WEAPON (2) ------- Assault Rifle > --- INVENTORY (5) ---- Ion Engine Ion Engine Aluminum Leg Aluminum Leg Peak State ------------ > --- POWER ------------ Ion Engine > --- PROPULSION ------- Aluminum Leg Aluminum Leg > --- UTILITY ---------- Sensor Array Signal Interpreter > --- WEAPON ----------- Assault Rifle Light Cannon > --- INVENTORY -------- Ion Engine Ion Engine Aluminum Leg Aluminum Leg Assault Rifle [Rating: 7] Favorites ----------- Power Ion Engine Engine Ion Engine Propulsion Aluminum Leg Leg Aluminum Leg Utility Sensor Array Device Sensor Array Processor Signal Interpreter Weapon Assault Rifle Ballistic Gun Assault Rifle Ballistic Cannon Light Cannon Build | -11 -10 ------- Run | Yrd Mat Slots Evolved . | . . Power . | . . Propulsion . | . . Utility . | . . Weapon . | . . Parts Attached 10 | 6 4 Power 2 | 2 . Engine 2 | 2 . Core . | . . Reactor . | . . Propulsion 2 | 2 . Treads . | . . Leg 2 | 2 . Wheel . | . . Hover . | . . Flight . | . . Utility 2 | . 2 Device 1 | . 1 Storage . | . . Processor 1 | . 1 Hackware . | . . Protection . | . . Artifact . | . . Weapon 4 | 2 2 Energy Gun . | . . Energy Cannon . | . . Ballistic Gun 3 | 2 1 Ballistic Cannon 1 | . 1 Launcher . | . . Special Weapon . | . . Impact Weapon . | . . Slashing Weapon . | . . Piercing Weapon . | . . Special Melee Weapon . | . . Unidentified Prototypes . | . . Parts Lost 4 | . 4 Power 1 | . 1 Propulsion 1 | . 1 Utility . | . . Weapon 2 | . 2 Highest Loss Streak 4 | . 4 To Critical Strikes . | . . Average Slot Usage (%) 74 | . 74 Engine 12 | . 12 Leg 26 | . 26 Device 4 | . 4 Processor 3 | . 3 Ballistic Gun 23 | . 23 Ballistic Cannon 3 | . 3 Naked Turns . | . . Heaviest Build 11 | 9 11 Greatest Support 20 | 20 20 Greatest Overweight (x) . | . . Average Overweight (x) . | . . Largest Inventory Capacity 5 | 5 5 Average Capacity 5 | 5 5 Most Carried 5 | 4 5 Average Carried 3 | 2 4 Final Capacity 5 | 5 5 Final Carried 4 | 4 4 Class Distribution -------------------- 100% | Mutant Dominant Class ---------------- Mutant | -10/Materials Resources | -11 -10 ----------- Run | Yrd Mat Matter Collected 338 | 290 48 Remotely . | . . Salvage Created 282 | 33 249 Parts 24 | 3 21 Haulers Intercepted . | . . Recyclers Shooed . | . . Parts Field Recycled . | . . Retrieved Matter . | . . Parts Self-Destructed . | . . Prevented . | . . Kills | -11 -10 ------- Run | Yrd Mat Combat Hostiles Destroyed 10 | 1 9 Guns 7 | 1 6 Cannons 1 | . 1 AOE 2 | . 2 Classes Destroyed 4 | 1 3 Worker 1 | . 1 Recycler 2 | . 2 Swarmer 8 | . 8 Grunt 2 | 1 1 Best Kill Streak 8 | 1 8 Combat Bots Only 5 | 1 5 Max Kills in Single Turn 2 | 1 2 Gunslinging . | . . Exploded 1 | . 1 Melee . | . . Uniques/NPCs Destroyed . | . . Combat | -11 -10 -------- Run | Yrd Mat Hostile Shots Fired 56 | 6 50 Missed 18 | 3 15 Damage Taken 695 | 34 661 Core 252 | 22 230 Absorbed by Shields . | . . Core Remaining (%) 91 | 91 . Volleys Fired 23 | 5 18 Largest 2 | 2 2 Hottest 55 | 40 55 Shots Fired 39 | 10 29 Gun 37 | 10 27 Cannon 2 | . 2 Launcher . | . . Special . | . . Kinetic 39 | 10 29 Thermal . | . . Explosive . | . . Electromagnetic . | . . Robot Hit Streak 8 | 4 8 Robot Miss Streak 4 | 1 4 Penetration Max . | . . Secondary Targets . | . . Shots Hit Robots 23 | 8 15 Core Hits 15 | 2 13 Critical Kills . | . . Critical Parts Destroyed . | . . Critical Strikes . | . . Melee Attacks . | . . Impact . | . . Slashing . | . . Piercing . | . . Sneak Attacks . | . . Combat Hostiles . | . . Follow-up Attacks . | . . Damage Inflicted 713 | 104 609 Guns 272 | 104 168 Cannons 16 | . 16 Explosions 425 | . 425 Melee . | . . Ramming . | . . Kinetic 288 | 104 184 Thermal 145 | . 145 Explosive 280 | . 280 Electromagnetic . | . . Impact . | . . Slashing . | . . Piercing . | . . Highest Corruption . | . . Average Corruption . | . . Corruption Purged . | . . Corruption Blocked . | . . Overload Shots . | . . Overflow Damage 159 | . 159 Projectiles . | . . Explosions 159 | . 159 Melee . | . . Knockbacks . | . . Impact . | . . Kinetic . | . . Secondary . | . . Self-Inflicted Damage 390 | . 390 Shots 5 | . 5 Rammed . | . . Targets Rammed . | . . Kicked . | . . Crushed . | . . Highest Temperature . | . . Average Temperature . | . . Received Heat Transfer 42 | 18 24 Siege Activations . | . . Robots Corrupted . | . . Combat Hostiles . | . . Parts Fried . | . . Impact Corruptions . | . . Robots Melted . | . . Combat Hostiles . | . . Parts Melted . | . . Heat Transferred 100 | . 100 Parts Sabotaged . | . . Parts Stolen . | . . Parts Stripped . | . . Power Chain Reactions . | . . Alert | -11 -10 ------- Run | Yrd Mat Peak Influence 405 | 20 405 Initial 13 | . 13 Average 108 | 5 151 Maximum Alert Level 2 | . 2 Low Security (%) 91 | 100 88 Level 1 6 | . 8 Level 2 2 | . 3 Level 3 . | . . Level 4 . | . . Level 5 . | . . High Security . | . . Max Security . | . . Squads Dispatched 3 | . 3 Investigation . | . . Extermination . | . . Reinforcement 3 | . 3 Assault . | . . Garrison . | . . Intercept . | . . Searches Triggered . | . . Construction Impeded . | . . Haulers Reinforced . | . . Active Scanning Responses . | . . Cargo Convoy Interrupts . | . . Stealth | -11 -10 --------- Run | Yrd Mat Distress Signals 1 | . 1 Communications Jammed . | . . Distress Signals . | . . Times Spotted 15 | 1 14 Peak Tracking Total 5 | 1 5 Tactical Retreats . | . . Traps | -11 -10 ------- Run | Yrd Mat Traps Triggered . | . . Indirectly . | . . Trap Hack Attempts . | . . Triggered . | . . Disarmed . | . . Reprogrammed . | . . Reused . | . . Traps Extracted . | . . Installed . | . . Triggered . | . . Machines | -11 -10 ---------- Run | Yrd Mat Machines Disabled 7 | . 7 Max in Single Turn 3 | . 3 Machines Repaired . | . . Machines Dismantled . | . . Machines Sabotaged . | . . Overloaded Fab Kills . | . . Hacking | -11 -10 --------- Run | Yrd Mat Machines Accessed 2 | . 2 Terminals 2 | . 2 Fabricators . | . . Repair Stations . | . . Recycling Units . | . . Scanalyzers . | . . Garrison Access . | . . Total Hacks 3 | . 3 Successful 3 | . 3 Failed . | . . Catastrophic . | . . Database Lockouts . | . . Manual . | . . Terminals 3 | . 3 Fabricators . | . . Repair Stations . | . . Recycling Units . | . . Scanalyzers . | . . Garrison Access . | . . Terminal Hacks 3 | . 3 Security Status 1 | . 1 Recall Reinforcements 1 | . 1 Zone Layout 1 | . 1 Fabricator Hacks . | . . Repair Station Hacks . | . . Recycling Unit Hacks . | . . Scanalyzer . | . . Garrison Access Hacks . | . . Unauthorized Hacks . | . . Terminals . | . . Fabricators . | . . Repair Stations . | . . Recycling Units . | . . Scanalyzers . | . . Garrison Access . | . . Data Cores Recovered . | . . Used . | . . Hacking Detections 2 | . 2 Full Trace Events . | . . Feedback Events . | . . Feedback Blocked . | . . Robot Schematics Acquired . | . . Robots Built . | . . Authchips . | . . Time . | . . Total Robot Build Rating . | . . Part Schematics Acquired . | . . Parts Built . | . . Authchips . | . . Time . | . . Total Part Build Rating . | . . Parts Repaired . | . . Time . | . . Parts Recycled . | . . Recycled Matter . | . . Retrieved Matter . | . . Retrieved Components . | . . Parts Scanalyzed . | . . Part Schematics Acquired . | . . Parts Damaged . | . . Bothacking | -11 -10 ------------ Run | Yrd Mat Used RIF Installer . | . . Robots Hacked . | . . Non-combat . | . . Combat . | . . Robot Hacks Applied . | . . Relay Couplers Released . | . . Fabnet Peak Effective % . | . . Robots Rewired . | . . Allies Hacked . | . . Hacks Repelled . | . . Allies | -11 -10 -------- Run | Yrd Mat Total Allies . | . . Largest Group . | . . Highest-Rated Group . | . . Highest-Rated Ally . | . . Total Orders . | . . Ally Attacks . | . . Total Damage . | . . Kills . | . . Allies Corrupted . | . . Allies Melted . | . . Intel | -11 -10 ------- Run | Yrd Mat Robot Analysis Total . | . . Derelict Logs Recovered . | . . Drone Launches . | . . Drone Recoveries . | . . Exploration | -11 -10 ------------- Run | Yrd Mat Turns Passed 310 | 91 219 Spaces Moved 178 | 62 116 Core 19 | 19 . Treads . | . . Legs 159 | 43 116 Wheels . | . . Hover . | . . Flight . | . . Fastest Speed 50 | 50 120 Average Speed 112 | 98 120 Slowest Speed 120 | 120 120 Overloaded Moves . | . . Propulsion Burnouts . | . . Robots Hopped . | . . Cave-ins Triggered . | . . Exploration Rate (%) 15 | 6 25 Regions Visited 1 Branch Regions . Pre-discovered Areas . | . . Known Exits Taken . | . . Unknown Exits Taken 1 | 1 . Scrap Searched . | . . Spaces Dug . | . . Terrain Destroyed 20 | . 20 Melee . | . . Projectile . | . . AOE 20 | . 20 Terrain Rammed . | . . Walls Destroyed . | . . Machines Disabled . | . . Actions | -11 -10 --------- Run | Yrd Mat Total 249 | 81 168 Wait 22 | . 22 Move 177 | 61 116 Hop . | . . Pick Up 14 | 9 5 Fast Attach 1 | . 1 Attach 7 | 5 2 Detach . | . . Swap 2 | 1 1 Drop 3 | . 3 Fire 23 | 5 18 Melee . | . . Ram . | . . Kick . | . . Crush . | . . Escape Stasis . | . . Rewire . | . . Trap . | . . Miscellaneous . | . . Route ------- -11/Scrapyard -10/Materials (discovered 1 exit: [Mat]) History --------- Turn | Location | Event 2 | -11/Scrapyard | Met Revision 17 52 | -11/Scrapyard | Discovered new exit (range 8) 92 | -11/Scrapyard | Entered Materials 102 | -10/Materials | Discovered new exit (range 20) 298 | -10/Materials | Core integrity fell below 50% 298 | -10/Materials | Core integrity fell below 20% 311 | -10/Materials | Destroyed by G-34 Mercenary with Small Laser Last Messages --------------- reinforcements to Terminal M007. R-06 Scavenger collects Lgt. Assault Rifle. Nuclear Reactor explodes. K-01 Serf destroyed. Ion Engine destroyed. Destroyed Ion Engine. Matter Pump disabled. Fusion Modulator explodes. Nuclear Reactor explodes. S-10 Pest destroyed. R-06 Scavenger destroyed. Aluminum Leg destroyed. Destroyed Aluminum Leg. U-05 Engineer lays Concrete. Assault Rifle destroyed. U-05 Engineer builds a Wall. S-10 Pest destroyed. U-05 Engineer lays Concrete. U-05 Engineer builds a Wall. U-05 Engineer lays Concrete. Map ----- +----------------------------------------------------+ | | | ?????????????????????????????????????????????? | | ?????????????????????????????????????????????? | | ?????????????????????????????????????????????? | | ???????????????????????????????????????#####?? | | ???????????????????????????????######### ### | | ??????????????????????????????? | | ??????????????????????????????? ####### ## | | ??????????????????????????????? #?????###### | | ?????????????????????????????? #??????????# | | ??????????????????? ?????????? #??????#####+ | | ?????????????????? ??? ???? #??##### | | ?????????????????? T?? "??# #??# # " | | ?????????????????? x? T??# #??# # " | | ??????????????????# ?? "" # #??# # " | | ??????????????????# ?? "" # #### + | | ??????????????????#* ?? + # | | ??????????????????#%=?# ! ?# # " | | ???????????????#### s# ### # " | | ???????????????# ^ ###### # | | ???????????????# % #????# ###### | | ???????????????# ""*%= #????# # "T" | | ???????????????# "" #????# # | | ???????????????# "" !! #????# # | | ???????????????# ! ###### # | | ??????????????## @ !! # # # """ | | ??????????????# # T # # """ | | ??????????????# # # # """ | | ??????????????# # [[!# # | | ??????????????# + [[ # ###### | | ??????????????# # [[ # ###### | | ??????????????#; [ # # | | ??????????????#; " " # # | | ??????????????#; [ """ # # | | ??????????????## =u= ###### #### | | ???????????????# u= #????# # | | ???????????????# g ## ### #????# # | | ???????????????# ########?# #????# %+% = | | ???????????????# ?????????# #????# # | | ???????????????# ????????## ###### # | | ???????????????# ????????# # | | ????????????????? ?????????# ############ | | ????????????????????????????# #??????????? | | ????????????????????????????# #??????????? | | ????????????????????????????# #??????????? | | ????????????????????????????#######??????????? | | ?????????????????????????????????????????????? | | ?????????????????????????????????????????????? | | ?????????????????????????????????????????????? | | ?????????????????????????????????????????????? | +----------------------------------------------------+ Best States ------------- Heat Dissipation 25 Energy Generation 10 Energy Capacity 250 Matter Stores 300 Matter Capacity 300 Sight Range 16 Robot Scan Range 14 Terrain Scan Density 10 Evasion (%) 55 Item Schematics ----------------- None Robot Schematics ------------------ None Fabricated ------------ Nothing Alien Tech Used ----------------- None Achievements -------------- GoHome() Challenges ------------ None Game ------ Seed FluxStorageMatrix Manual? 0 Play Time 00:08:48 Cumulative 1.5 hours Start 2024.04.01 @ 15:26:04 End 2024.04.01 @ 15:37:21 Sessions 1 Manual Loads 0 Difficulty Rogue Special Mode None Game No. 3 Rogue 3 Adventurer 0 Explorer 0 Win Type - Total 0 Types 0/0/0/0/0/0/0/0/0 Lore% 0 Gallery% 3 Achievement% 2 Wizard Run 0 Options --------- Layout 1 ASCII 0 Keyboard 0 Movement Mouse Keybinds 0 Fullscreen 1 Font 24/Smallcaps Map View 50x35 Zoom Use 0% Tactical HUD 0 Map Filters NONE Filters NONE Steam X RUN: 08d983e1-17b6-4c11-b768-d0355ab7b1b1